bitfinex-derivatives/quotes_SOLF0:USTF0_20250823
["timestamp","ask_amount","ask_price","bid_price","bid_amount"]
[1755956322029,24.9107,200.79,200.66,135.64561]
[1755956322424,24.9115,200.78,200.66,135.64561]
[1755956323217,4.9836,200.73,200.66,135.64561]
[1755956323623,4.9836,200.73,200.67,2.61]
[1755956324122,104.0,200.77,200.7,2.61]
[1755956324624,4.9823,200.78,200.7,2.61]
[1755956324920,24.9083,200.81,200.7,2.61]
[1755956325323,4.9829,200.76,200.7,2.61]
[1755956325522,24.9083,200.81,200.7,2.61]
[1755956325723,24.9093,200.8,200.7,2.61]
[1755956325919,24.9093,200.8,200.66,138.25561]
[1755956326325,24.9112,200.79,200.66,138.25561]
[1755956327223,4.9834,200.74,200.66,138.25561]
[1755956327927,4.9834,200.74,200.67,2.61]
[1755956330620,24.9083,200.81,200.67,2.61]
[1755956330827,24.9095,200.8,200.67,2.61]
[1755956331030,24.9083,200.81,200.67,2.61]
[1755956331431,24.9103,200.79,200.67,2.61]
[1755956331825,24.9083,200.81,200.67,2.61]
[1755956332626,4.9825,200.77,200.67,2.61]
[1755956332827,133.44,200.87,200.67,2.61]
[1755956333035,104.0,200.83,200.67,2.61]
[1755956333228,4.9821,200.79,200.7,2.61]
[1755956334027,104.0,200.82,200.7,2.61]
[1755956334028,128.9068,200.82,200.7,2.61]
[1755956334833,24.9081,200.81,200.7,2.61]
[1755956335329,128.9068,200.82,200.7,2.61]
[1755956335534,104.0,200.82,200.7,2.61]
[1755956336332,4.9816,200.81,200.72,2.61]
[1755956336726,104.0,200.82,200.72,2.61]
[1755956336933,4.9811,200.83,200.73,2.61]
[1755956338137,24.8939,200.93,200.79,7.62179162]
[1755956338328,32.51079162,200.97,200.8,135.93]
[1755956338533,32.51079162,200.97,200.81,133.32]
[1755956339033,4.9789,200.92,200.82,6.49363782]
[1755956339234,4.9789,200.92,200.83,3.88363782]
[1755956339430,32.51079162,200.97,200.84,3.88363782]
[1755956339632,24.8906,200.95,200.82,2.61]
[1755956339833,24.8906,200.95,200.83,137.1823816]
[1755956340139,24.8933,200.93,200.83,133.3]
[1755956340435,24.8933,200.93,200.82,2.61]
[1755956340436,24.8917,200.94,200.84,133.28]
[1755956340644,4.9795,200.9,200.84,133.28]
[1755956340846,4.9795,200.9,200.75,24.9147]
[1755956340847,24.8917,200.94,200.83,133.26]
[1755956341042,24.894,200.92,200.83,133.26]
[1755956341439,24.894,200.92,200.77,2.61]
[1755956341633,7.62179162,200.89,200.79,133.24]
[1755956342039,24.9003,200.87,200.79,133.24]
[1755956342439,104.0,200.91,200.73,2.61]
[1755956342646,104.0,200.9,200.74,3.88349965]
[1755956342843,104.0,200.9,200.73,2.61]
[1755956342844,4.9822,200.79,200.73,2.61]
[1755956343041,24.9028,200.85,200.73,135.83]
[1755956343345,4.9822,200.79,200.73,2.61]
[1755956344350,24.9054,200.83,200.72,133.2]
[1755956344942,4.9825,200.77,200.72,133.2]
[1755956345140,4.9825,200.77,200.72,135.86]
[1755956345343,4.9825,200.77,200.67,339.8448]
[1755956345344,24.9068,200.82,200.71,133.16]
[1755956345641,4.9829,200.76,200.72,3.89022085]
[1755956345837,24.9068,200.82,200.72,2.66]
[1755956346046,24.9068,200.82,200.73,3.89006519]
[1755956346246,4.9818,200.8,200.72,2.66]
[1755956346447,24.9054,200.83,200.73,3.89172968]
[1755956346642,24.9054,200.83,200.72,2.66]
[1755956346643,24.9067,200.82,200.72,2.66]
[1755956347055,24.9079,200.81,200.72,2.66]
[1755956347242,24.9079,200.81,200.73,3.89204115]
[1755956347443,24.9079,200.81,200.72,2.66]
[1755956347747,24.9079,200.81,200.73,3.89284461]
[1755956348045,24.9079,200.81,200.72,135.78]
[1755956348243,24.9079,200.81,200.73,3.89279431]
[1755956348443,24.9079,200.81,200.72,135.78]
[1755956348643,24.909,200.8,200.73,3.89343161]
[1755956348849,24.909,200.8,200.72,135.78]
[1755956349047,24.909,200.8,200.73,3.89348192]
[1755956349244,24.909,200.8,200.72,135.78]
[1755956349446,24.909,200.8,200.73,3.8941242]
[1755956349645,24.909,200.8,200.72,135.78]
[1755956349847,24.909,200.8,200.73,3.89412341]
[1755956350146,24.9102,200.79,200.72,135.78]
[1755956350336,24.9102,200.79,200.73,3.8947572]
[1755956350541,24.9102,200.79,200.72,135.78]
[1755956350743,24.9102,200.79,200.72,2.66]
[1755956351445,4.9834,200.74,200.72,2.66]
[1755956351641,4.9834,200.74,200.7,133.08]
[1755956351843,104.0,200.77,200.71,3.89489785]
[1755956352148,104.0,200.77,200.7,135.74]
[1755956352444,4.9837,200.73,200.71,3.89505575]
[1755956352649,4.9837,200.73,200.7,135.74]
[1755956352846,104.0,200.82,200.72,2.66]
[1755956353054,104.0,200.82,200.73,3.89455753]
[1755956353247,104.0,200.82,200.74,3.89455753]
[1755956353447,4.9819,200.8,200.72,2.66]
[1755956353646,104.0,200.82,200.73,3.89501163]
[1755956353847,4.9827,200.77,200.7,133.08]
[1755956354150,4.9827,200.77,200.71,6.55506117]
[1755956354353,104.0,200.82,200.72,3.89506117]
[1755956354650,104.0,200.82,200.71,2.66]
[1755956354651,24.9077,200.81,200.73,3.89506117]
[1755956354849,24.9077,200.81,200.71,2.66]
[1755956355049,24.9077,200.81,200.72,3.90176729]
[1755956355250,24.9077,200.81,200.71,2.66]
[1755956355251,4.9816,200.81,200.74,2.66]
[1755956355451,4.9816,200.81,200.75,3.90176729]
[1755956355751,4.9816,200.81,200.77,2.66]
[1755956355951,4.9816,200.81,200.71,9.13632619]
[1755956356151,4.9816,200.81,200.78,2.66]
[1755956356356,4.9816,200.81,200.79,2.66]
[1755956356545,4.9819,200.8,200.77,135.64]
[1755956356746,4.9819,200.8,200.78,6.56073698]
[1755956356945,4.9819,200.8,200.78,2.66]
[1755956357553,4.9819,200.8,200.77,132.98]
[1755956357856,4.9819,200.8,200.78,2.66]
[1755956358044,4.9819,200.8,200.79,2.66]
[1755956358441,104.0,200.86,200.8,2.66]
[1755956359352,104.0,200.86,200.81,3.89877421]
[1755956359551,104.0,200.91,200.78,2.66]
[1755956359850,104.0,200.91,200.8,2.66]
[1755956360052,4.9793,200.9,200.81,3.89871765]
[1755956360245,4.9793,200.9,200.83,2.66]
[1755956360449,4.9793,200.9,200.84,136.79871765]
[1755956360645,4.9793,200.9,200.84,132.9]
[1755956361057,4.9797,200.89,200.85,2.66]
[1755956362758,24.8956,200.91,200.8,2.66]
[1755956363058,24.8956,200.91,200.81,3.89380462]
[1755956363246,24.8972,200.9,200.8,135.52]
[1755956363958,4.9809,200.84,200.8,135.52]
[1755956364960,24.8941,200.92,200.8,132.86]
[1755956365154,24.8941,200.92,200.81,3.89312511]
[1755956365353,24.8941,200.92,200.82,3.89312511]
[1755956365653,24.8931,200.93,200.8,132.86]
[1755956365853,4.9804,200.86,200.81,3.89225653]
[1755956366054,104.0,200.9,200.81,2.66]
[1755956366251,104.0,200.9,200.8,132.86]
[1755956366651,0.02,200.88,200.8,132.86]
[1755956367757,0.02,200.88,200.77,135.38]
[1755956367957,0.02,200.88,200.78,3.89233939]
[1755956368159,0.02,200.88,200.77,135.38]
[1755956368359,0.02,200.88,200.78,3.8924739]
[1755956368555,0.02,200.88,200.79,6.5524739]
[1755956368859,0.02,200.88,200.79,2.66]
[1755956369063,104.0,200.89,200.81,2.66]
[1755956369559,108.9796,200.89,200.82,3.89150055]
[1755956369862,108.9796,200.89,200.81,2.66]
[1755956370157,4.9799,200.88,200.81,2.66]
[1755956370559,104.0,200.89,200.81,2.66]
[1755956370954,4.9804,200.86,200.82,132.66]
[1755956371154,104.0,200.89,200.83,2.66]
[1755956371350,104.0,200.89,200.83,10.27447895]
[1755956371860,108.9797,200.89,200.84,3.89039404]
[1755956372054,108.9797,200.89,200.84,2.66]
[1755956372455,108.9797,200.89,200.83,7.61447895]
[1755956372657,4.9791,200.91,200.85,2.66]
[1755956373763,104.0,200.94,200.88,2.8]
[1755956374056,104.0,200.94,200.89,132.6]
[1755956374256,104.0,200.99,200.91,2.8]
[1755956374563,104.0,200.99,200.91,10.41447895]
[1755956374762,4.9774,200.98,200.91,10.41447895]
[1755956376964,79.19416044,201.15,200.91,7.61447895]
[1755956377164,32.47427895,201.2,201.03,7.61447895]
[1755956377465,4.9729,201.16,201.04,2.8]
[1755956377867,4.9729,201.16,201.05,4.55982753]
[1755956378056,4.9729,201.16,201.06,4.55982753]
[1755956378260,4.9729,201.16,201.07,4.55982753]
[1755956378464,4.9734,201.14,201.08,4.55982753]
[1755956378760,4.9734,201.14,201.09,4.78931198]
[1755956379064,4.9734,201.14,201.1,4.78931198]
[1755956379263,4.9734,201.14,201.04,2.8]
[1755956379462,4.9739,201.12,201.05,6.37177669]
[1755956379663,4.9739,201.12,201.06,4.78340606]
[1755956379860,4.9739,201.12,201.07,4.78372197]
[1755956380065,4.9739,201.12,201.04,2.8]
[1755956380266,4.9739,201.12,201.05,4.78372197]
[1755956380466,4.9739,201.12,201.06,4.77963767]
[1755956380668,4.9739,201.12,201.04,2.8]
[1755956380870,4.9739,201.12,201.05,4.77969785]
[1755956381064,4.9739,201.12,201.06,4.77969785]
[1755956381265,4.9733,201.15,201.07,4.77969785]
[1755956381461,4.9733,201.15,201.08,4.77969785]
[1755956381767,4.9736,201.13,201.09,4.77969785]
[1755956381962,157.2408,201.19,201.05,2.8]
[1755956382169,24.8631,201.17,201.06,4.77502742]
[1755956382362,4.9739,201.12,201.07,4.77502742]
[1755956382567,104.0,201.15,201.08,4.77502742]
[1755956382767,104.0,201.15,201.09,4.77502742]
[1755956382966,128.8608,201.19,201.05,2.8]
[1755956383164,24.862,201.18,201.07,2.8]
[1755956383370,24.862,201.18,201.08,4.77023626]
[1755956383563,24.862,201.18,201.09,4.77023626]
[1755956383764,4.9733,201.14,201.07,2.8]
[1755956383964,128.8608,201.19,201.08,4.76565206]
[1755956384168,4.9725,201.18,201.09,7.56565206]
[1755956384362,4.9725,201.18,201.1,4.76565206]
[1755956384668,132.3,201.24,201.12,2.8]
[1755956384669,24.8545,201.24,201.12,2.8]
[1755956384868,4.9721,201.19,201.13,4.76565206]
[1755956385164,4.9721,201.19,201.15,2.8]
[1755956387468,4.9721,201.19,200.99,24.885]
[1755956387469,24.864,201.17,201.05,15.62578491]
[1755956387771,24.864,201.17,201.06,4.74676659]
[1755956387967,24.864,201.17,201.07,4.74676659]
[1755956388166,24.864,201.17,201.08,4.74676659]
[1755956388366,24.864,201.17,201.09,4.74676659]
[1755956388668,24.8608,201.19,201.1,4.74440441]
[1755956388865,24.8608,201.19,201.05,2.8]
[1755956389378,132.2,201.2,201.06,4.74433911]
[1755956389569,24.8558,201.23,201.07,4.74433911]
[1755956389874,4.9721,201.19,201.08,7.54242856]
[1755956390073,4.9721,201.19,201.09,4.74242856]
[1755956390369,4.9721,201.19,201.1,4.74242856]
[1755956390670,4.9721,201.19,201.11,4.74242856]
[1755956390862,4.9725,201.18,201.12,4.74242856]
[1755956391068,4.9725,201.18,201.08,2.8]
[1755956391270,24.8583,201.21,201.09,4.73912797]
[1755956391470,4.9733,201.15,201.08,2.8]
[1755956391768,4.9733,201.15,201.09,4.73937862]
[1755956391971,4.9733,201.15,201.1,4.73937862]
[1755956392172,4.9733,201.15,201.08,2.8]
[1755956392173,4.9733,201.15,201.11,4.73931814]
[1755956392372,4.9733,201.15,201.08,2.8]
[1755956392578,24.8558,201.23,201.09,4.7386251]
[1755956392771,132.12,201.22,201.1,4.7386251]
[1755956392968,132.12,201.22,201.11,4.7386251]
[1755956393163,4.9723,201.19,201.12,4.7386251]
[1755956393369,4.9723,201.19,201.08,2.8]
[1755956393568,4.9723,201.19,201.09,4.73756185]
[1755956393775,4.9723,201.19,201.1,4.73756185]
[1755956393975,4.9723,201.19,201.11,4.73756185]
[1755956394178,4.9723,201.19,201.12,4.73756185]
[1755956394380,4.9723,201.19,201.13,4.73756185]
[1755956394577,4.9723,201.19,201.08,2.8]
[1755956394873,4.9716,201.21,201.09,4.73723095]
[1755956395073,4.9716,201.21,201.11,2.8]
[1755956395271,4.9716,201.21,201.12,4.73723095]
[1755956395475,4.9716,201.21,201.13,4.73723095]
[1755956395674,4.9711,201.23,201.14,4.73723095]
[1755956395876,4.9711,201.23,201.11,2.8]
[1755956396076,4.9711,201.23,201.13,2.8]
[1755956396277,4.9711,201.23,201.14,4.73692483]
[1755956396478,4.9711,201.23,201.13,2.8]
[1755956396778,4.9711,201.23,201.14,4.73717225]
[1755956396979,4.9711,201.23,201.13,2.8]
[1755956397276,4.9711,201.23,201.14,4.73705137]
[1755956397476,4.9711,201.23,201.15,4.73705137]
[1755956397676,24.8532,201.25,201.16,4.73705137]
[1755956397877,24.8532,201.25,201.13,2.8]
[1755956398180,4.9718,201.21,201.14,4.73798825]
[1755956398478,4.9718,201.21,201.15,4.73798825]
[1755956398680,4.9718,201.21,201.13,2.8]
[1755956398882,4.9718,201.21,201.14,4.73858507]
[1755956399079,4.9718,201.21,201.15,4.73858507]
[1755956399273,4.9718,201.21,201.16,4.73989199]
[1755956399474,4.9718,201.21,201.13,2.8]
[1755956399678,4.9718,201.21,201.14,4.73983152]
[1755956399882,4.9718,201.21,201.15,4.73983152]
[1755956400080,4.9718,201.21,201.16,4.73983152]
[1755956400283,4.9712,201.23,201.17,4.74191749]
[1755956400581,4.9712,201.23,201.13,2.8]
[1755956400780,424.31236757,201.26,201.14,4.74184729]
[1755956400978,424.31236757,201.26,201.15,4.74184729]
[1755956401180,424.31236757,201.26,201.16,4.74184729]
[1755956401373,424.31236757,201.26,201.17,4.74184729]
[1755956401579,4.9706,201.25,201.18,4.74184729]
[1755956401779,4.9706,201.25,201.16,2.8]
[1755956401981,4.9706,201.25,201.17,4.74230766]
[1755956402175,89.57236757,201.26,201.18,4.74230766]
[1755956402380,89.57236757,201.26,201.2,2.8]
[1755956402575,89.57236757,201.26,201.21,4.74230766]
[1755956402781,128.8456,201.32,201.21,2.8]
[1755956402978,131.88,201.33,201.22,4.74254402]
[1755956403184,24.8449,201.32,201.13,2.8]
[1755956403382,4.9701,201.28,201.15,7.8129]
[1755956403588,4.9701,201.28,201.16,7.58423401]
[1755956403883,4.9701,201.28,201.17,4.74423401]
[1755956404081,4.9701,201.28,201.18,4.74423401]
[1755956404287,4.9701,201.28,201.19,7.58423401]
[1755956404584,4.9701,201.28,201.2,4.74423401]
[1755956404777,9.9373,201.34,201.21,4.74423401]
[1755956404981,4.9695,201.3,201.22,7.58423401]
[1755956405185,131.84,201.34,201.23,4.74423401]
[1755956405388,131.82,201.35,201.24,4.74423401]
[1755956405685,24.8407,201.36,201.25,4.74423401]
[1755956405888,24.8407,201.36,201.26,4.74423401]
[1755956406082,4.9693,201.31,201.27,4.74423401]
[1755956406387,4.9693,201.31,201.22,2.84]
[1755956406585,4.9695,201.3,201.23,4.78059179]
[1755956406788,131.8,201.34,201.24,4.78059179]
[1755956406978,131.8,201.34,201.15,12.82578491]
[1755956406979,131.78,201.34,201.23,2.84]
[1755956407179,4.9694,201.31,201.24,4.78154976]
[1755956407381,4.9694,201.31,201.23,2.84]
[1755956407382,104.0,201.3,201.25,4.78154976]
[1755956407587,104.0,201.29,201.21,2.84]
[1755956407787,104.0,201.29,201.22,4.78104477]
[1755956407986,104.0,201.29,201.23,4.78104477]
[1755956408286,108.9698,201.29,201.24,4.78104477]
[1755956408487,108.9698,201.29,201.25,4.78104477]
[1755956408790,104.0,201.29,201.26,4.78104477]
[1755956409083,104.0,201.29,201.21,2.84]
[1755956409276,104.0,201.29,201.22,4.78205568]
[1755956409482,104.0,201.29,201.23,4.78205568]
[1755956409686,104.0,201.29,201.24,4.78205568]
[1755956409887,104.0,201.29,201.25,4.78205568]
[1755956410179,104.0,201.29,201.26,4.78205568]
[1755956410376,104.0,201.29,201.27,4.78205568]
[1755956410583,104.0,201.29,201.21,2.84]
[1755956410783,104.0,201.29,201.22,4.78534524]
[1755956410987,104.0,201.29,201.23,4.78534524]
[1755956411184,104.0,201.29,201.24,4.78534524]
[1755956411381,104.0,201.28,201.17,2.84]
[1755956411587,104.0,201.27,201.18,4.78831157]
[1755956411887,104.0,201.27,201.19,4.78831157]
[1755956412087,104.0,201.27,201.2,4.78831157]
[1755956412283,104.0,201.27,201.21,4.78831157]
[1755956412487,4.9708,201.25,201.22,4.78831157]
[1755956412682,4.9708,201.25,201.17,2.84]
[1755956412883,4.9708,201.25,201.18,4.79291857]
[1755956413183,4.9708,201.25,201.19,4.79291857]
[1755956413490,4.9708,201.25,201.17,2.84]
[1755956413491,4.9708,201.25,201.2,4.79291857]
[1755956413689,4.9708,201.25,201.21,4.79291857]
[1755956413885,4.9708,201.25,201.22,4.79291857]
[1755956414086,4.9708,201.25,201.23,4.79291857]
[1755956414291,4.9708,201.25,201.17,2.84]
[1755956414589,4.9708,201.25,201.18,4.80255991]
[1755956414783,4.9708,201.25,201.19,4.80255991]
[1755956414984,4.9708,201.25,201.2,4.80255991]
[1755956415190,4.9708,201.25,201.21,4.80255991]
[1755956415384,136.6502,201.27,201.22,4.80255991]
[1755956415585,136.6502,201.27,201.17,2.84]
[1755956415586,131.68,201.27,201.23,4.80255991]
[1755956415788,131.68,201.27,201.24,4.80255991]
[1755956415989,136.6503,201.27,201.17,2.84]
[1755956416191,136.6503,201.27,201.18,6.38826286]
[1755956416394,131.68,201.27,201.19,4.80755589]
[1755956416692,131.68,201.27,201.2,4.81341681]
[1755956416986,131.68,201.27,201.21,4.81341681]
[1755956417183,131.68,201.27,201.22,4.81341681]
[1755956417385,131.68,201.27,201.23,4.81341681]
[1755956417586,131.68,201.27,201.24,4.81341681]
[1755956417792,4.9704,201.26,201.25,4.81341681]
[1755956419594,136.5304,201.26,201.25,4.81341681]
[1755956420794,137.0304,201.26,201.25,4.81341681]
[1755956421291,39.8041,201.33,201.25,4.81341681]
[1755956421292,7.5863722,201.35,201.25,4.81341681]
[1755956421499,131.52,201.34,201.26,6.40371297]
[1755956421792,7.5863722,201.35,201.27,4.81341681]
[1755956421992,131.52,201.34,201.28,4.81341681]
[1755956422188,12.5556722,201.31,201.29,4.81341681]
[1755956422396,7.5863722,201.31,201.16,2.84]
[1755956422586,131.5,201.3,201.17,5.54716657]
[1755956422785,7.5863722,201.29,201.18,5.54716657]
[1755956423088,131.5,201.29,201.19,5.54716657]
[1755956423288,156.3485,201.29,201.2,1.59138168]
[1755956423590,131.5,201.28,201.21,5.54832857]
[1755956423789,4.971,201.24,201.22,1.59138168]
[1755956423996,131.48,201.26,201.16,2.84]
[1755956424191,131.48,201.26,201.17,5.54931234]
[1755956424192,7.5863722,201.23,201.17,5.54931234]
[1755956424396,7.5863722,201.23,201.18,1.59199165]
[1755956424595,4.9723,201.19,201.11,2.84]
[1755956424895,131.48,201.2,201.12,5.55184161]
[1755956425199,4.9732,201.15,201.13,1.59281109]
[1755956425401,4.9732,201.15,201.14,1.59281109]
[1755956425603,4.9743,201.11,201.05,2.84]
[1755956425802,131.46,201.14,201.06,5.5547842]
[1755956425999,131.46,201.14,201.07,5.5547842]
[1755956426200,131.46,201.14,201.08,1.59382691]
[1755956426401,131.46,201.14,201.09,1.59382691]
[1755956426600,24.8681,201.13,201.05,2.84]
[1755956426800,24.8681,201.13,201.06,5.55453989]
[1755956427001,24.8681,201.13,201.07,5.55453989]
[1755956427196,24.8681,201.13,201.08,5.55453989]
[1755956427398,24.8681,201.13,201.09,1.5937551]
[1755956427698,24.8681,201.13,201.05,2.84]
[1755956428001,24.8681,201.13,201.06,5.55287897]
[1755956428198,4.9747,201.09,201.07,5.55287897]
[1755956428398,4.9747,201.09,201.08,1.59260833]
[1755956428592,24.8731,201.09,201.01,2.84]
[1755956428792,24.8731,201.09,201.02,5.55210296]
[1755956428793,4.9759,201.04,201.02,5.55210296]
[1755956428995,4.9759,201.04,201.03,5.55210296]
[1755956429202,4.9759,201.04,201.03,1.59244602]
[1755956430099,24.8743,201.08,201.03,1.59244602]
[1755956430293,24.8743,201.08,201.04,1.59244602]
[1755956430496,24.8743,201.08,201.05,1.59244602]
[1755956430690,24.8794,201.04,200.97,1.98156]
[1755956430898,24.8769,201.06,200.98,5.54525615]
[1755956431098,131.4,201.05,200.99,1.59055291]
[1755956431401,131.4,201.05,201.0,1.59055291]
[1755956431603,131.4,201.05,201.01,1.59055291]
[1755956431802,4.9758,201.04,201.02,1.59055291]
[1755956432003,131.4,201.05,200.97,1.98156]
[1755956432297,131.4,201.05,200.98,1.58921741]
[1755956432501,131.4,201.05,200.99,1.58921741]
[1755956432700,131.4,201.05,201.0,1.58921741]
[1755956433003,131.4,201.05,200.97,1.98156]
[1755956433303,136.3758,201.05,200.98,1.58796318]
[1755956433499,136.3758,201.05,200.99,1.58796318]
[1755956433692,4.9758,201.05,200.97,1.98156]
[1755956433899,4.9758,201.05,201.0,2.67]
[1755956434302,4.976,201.04,201.01,4.66381292]
[1755956434602,4.976,201.04,201.0,2.67]
[1755956434803,4.976,201.04,201.01,4.66331922]
[1755956435104,4.976,201.04,201.0,2.67]
[1755956435303,4.976,201.04,201.01,4.66270481]
[1755956435500,4.976,201.04,201.0,2.67]
[1755956436399,108.9753,201.07,200.97,1.98156]
[1755956436600,131.38,201.06,200.98,8.91386819]
[1755956436802,131.38,201.06,200.99,6.24386819]
[1755956437006,131.38,201.06,201.0,4.659082]
[1755956437202,131.38,201.06,200.98,2.67]
[1755956437504,131.38,201.06,200.99,6.24156844]
[1755956437705,131.38,201.06,201.0,4.65736597]
[1755956438005,131.38,201.06,200.98,2.67]
[1755956438202,131.38,201.06,200.99,6.2414763]
[1755956438404,4.9758,201.05,201.0,4.65576977]
[1755956438604,4.9758,201.05,200.98,2.67]
[1755956438904,4.9758,201.05,200.99,6.23924507]
[1755956439101,4.9758,201.05,201.01,2.67]
[1755956439297,104.0,201.07,201.02,4.65406109]
[1755956439501,131.34,201.09,201.03,6.23617164]
[1755956439698,104.0,201.12,201.04,7.32344625]
[1755956439905,240.3141,201.11,201.04,2.67]
[1755956440105,108.9741,201.11,201.04,2.67]
[1755956440506,108.9741,201.11,201.05,4.65275116]
[1755956440805,108.9741,201.11,201.04,2.67]
[1755956441002,4.9748,201.09,200.97,1.98156]
[1755956441201,104.0,201.11,200.98,8.90557716]
[1755956441401,104.0,201.11,200.99,6.23557716]
[1755956441602,128.8708,201.11,201.0,6.23557716]
[1755956441804,104.0,201.11,201.01,8.90542162]
[1755956442000,104.0,201.11,201.02,4.65300383]
[1755956442300,4.9746,201.1,201.03,4.65153673]
[1755956442505,4.9746,201.1,201.01,2.67]
[1755956442706,4.9746,201.1,201.02,6.2334912]
[1755956442901,4.9746,201.1,201.03,4.65143157]
[1755956443103,136.2746,201.1,201.04,4.65130923]
[1755956443304,4.9746,201.1,201.04,2.67]
[1755956443503,235.28,201.11,201.04,2.67]
[1755956443706,104.0,201.11,201.04,2.67]
[1755956444406,4.9743,201.1,201.04,2.67]
[1755956444610,104.0,201.11,200.98,2.67]
[1755956444911,4.9755,201.06,200.99,6.23251513]
[1755956445108,4.9755,201.06,201.0,4.65070952]
[1755956445303,4.9755,201.06,200.98,2.67]
[1755956445517,24.8769,201.06,200.99,4.65104473]
[1755956445806,24.8769,201.06,200.97,1.98156]
[1755956446103,4.9772,200.99,200.97,1.98156]
[1755956447409,136.2166,201.01,200.97,1.98156]
[1755956447610,131.24,201.01,200.97,1.98156]
[1755956447908,131.22,201.01,200.97,1.98156]
[1755956448105,24.8799,201.04,200.97,1.98156]
[1755956448312,131.22,201.03,200.97,1.98156]
[1755956448904,4.9772,200.99,200.97,1.98156]
[1755956450913,131.18,200.98,200.97,1.98156]
[1755956453515,4.9772,200.99,200.97,1.98156]
[1755956453711,131.16,201.01,200.97,1.98156]
[1755956453910,131.14,201.03,200.98,2.67]
[1755956454116,136.1156,201.05,200.99,2.67]
[1755956454318,131.14,201.05,201.0,4.64874289]
[1755956454517,131.14,201.05,200.99,2.67]
[1755956454817,131.14,201.07,201.0,6.23027468]
[1755956455018,131.14,201.09,201.01,8.90002814]
[1755956455314,131.14,201.09,201.02,6.23002814]
[1755956455616,131.12,201.12,201.04,2.67]
[1755956455917,131.12,201.12,201.05,6.23057917]
[1755956456118,136.0939,201.12,201.04,2.67]
[1755956456317,136.0939,201.12,201.05,6.23223159]
[1755956456511,24.8652,201.16,201.06,4.65005692]
[1755956456716,4.9743,201.11,201.07,4.65005692]
[1755956456920,4.9743,201.11,201.05,2.67]
[1755956457239,49.7389,201.12,201.02,2.67]
[1755956457423,24.8694,201.12,201.03,4.65495552]
[1755956457722,24.8694,201.12,200.97,1.98156]
[1755956457723,4.9751,201.07,201.05,2.67]
[1755956457923,131.08,201.12,201.06,4.6546623]
[1755956458126,131.08,201.12,201.01,2.67]
[1755956458327,131.08,201.12,201.02,6.2460969]
[1755956458629,131.08,201.12,201.03,6.2460969]
[1755956458824,4.9753,201.07,201.04,6.2460969]
[1755956459024,4.9753,201.07,201.05,4.65475597]
[1755956459225,4.9753,201.07,201.06,4.65475597]
[1755956459627,131.08,201.12,201.06,4.65475597]
[1755956459827,131.08,201.12,201.0,2.67]
[1755956460029,4.9738,201.13,201.02,2.67]
[1755956460232,136.0138,201.13,201.04,2.67]
[1755956460528,359.2818,201.19,201.05,6.25055892]
[1755956460529,4.973,201.16,201.05,6.25055892]
[1755956460722,131.04,201.19,201.07,2.67]
[1755956460930,131.04,201.19,201.09,2.67]
[1755956461130,131.04,201.19,201.11,2.67]
[1755956461324,131.04,201.19,201.12,6.25055892]
[1755956461525,131.04,201.19,201.13,4.65779619]
[1755956461725,131.04,201.19,201.14,4.65779619]
[1755956461927,131.04,201.19,201.11,2.67]
[1755956462127,4.9726,201.17,201.12,6.25160602]
[1755956462328,131.04,201.19,201.13,4.65906233]